fUSD/lending_fUSD_20240414
["ID","MTS","AMOUNT","RATE_DAILY","PERIOD"]
[322559352,1713058241099,-343.66500353,0.00022,2]
[322559353,1713058241108,-223.96702898,0.0002211,2]
[322559354,1713058241118,-200.0,0.00022231,2]
[322559355,1713058241128,-1000.0,0.00022275,2]
[322559356,1713058241141,-19470.4824191,0.000223,2]
[322559357,1713058241151,-452.74,0.00022375,2]
[322559358,1713058241161,-396.734056,0.00022466,2]
[322559359,1713058241170,-33010.70758199,0.000225,2]
[322559360,1713058241180,-356.91,0.00022502,2]
[322559361,1713058241190,-300.0,0.00022502,2]
[322559362,1713058241200,-1570.61674,0.0002251,2]
[322559363,1713058241209,-198.693,0.00022544,2]
[322559364,1713058241219,-198.693,0.00022544,2]
[322559365,1713058241229,-198.693,0.00022544,2]
[322559366,1713058241239,-198.693,0.00022544,2]
[322559367,1713058241249,-198.693,0.00022544,2]
[322559368,1713058241259,-198.693,0.00022544,2]
[322559369,1713058241269,-198.693,0.00022545,2]
[322559370,1713058241278,-198.693,0.00022545,2]
[322559371,1713058241288,-198.693,0.00022545,2]
[322559372,1713058241298,-198.693,0.00022545,2]
[322559373,1713058241308,-167.0,0.00022576,2]
[322559374,1713058241318,-279.02,0.00022643,2]
[322559375,1713058241329,-48852.28899131,0.00022738,2]
[322559376,1713058241339,-550.0,0.00023,3]
[322559377,1713058241349,-1561.21,0.00023,2]
[322559378,1713058241358,-1260.42,0.00023,2]
[322559379,1713058241368,-1000.0,0.00023113,2]
[322559380,1713058241378,-1570.61673,0.0002313,2]
[322559381,1713058241391,-167.0,0.00023254,2]
[322559382,1713058241400,-1000.0,0.00023288,2]
[322559383,1713058241410,-1000.0,0.00023288,2]
[322559384,1713058241419,-1000.0,0.00023288,2]
[322559385,1713058241428,-1000.0,0.00023288,2]
[322559386,1713058241441,-1000.0,0.00023288,2]
[322559387,1713058241451,-1000.0,0.00023288,2]
[322559388,1713058241461,-1000.0,0.00023288,2]
[322559389,1713058241471,-1000.0,0.00023288,2]
[322559390,1713058241482,-1000.0,0.00023288,2]
[322559391,1713058241492,-930.0,0.00023288,2]
[322559392,1713058241502,-1000.0,0.00023288,2]
[322559393,1713058241512,-1000.0,0.00023288,2]
[322559394,1713058241522,-1000.0,0.00023288,2]
[322559395,1713058241531,-1000.0,0.00023288,2]
[322559396,1713058241541,-1000.0,0.00023288,2]
[322559397,1713058241551,-1000.0,0.00023288,2]
[322559398,1713058241560,-1000.0,0.00023288,2]
[322559399,1713058241570,-1000.0,0.00023288,2]
[322559400,1713058241579,-1000.0,0.00023288,2]
[322559401,1713058241589,-1000.0,0.00023288,2]
[322559402,1713058241599,-1000.0,0.00023288,2]
[322559403,1713058241609,-1000.0,0.00023288,2]
[322559404,1713058241619,-1000.0,0.00023288,2]
[322559405,1713058241629,-1000.0,0.00023288,2]
[322559406,1713058241640,-1000.0,0.00023288,2]
[322559407,1713058241650,-1000.0,0.00023288,2]
[322559408,1713058242016,-1000.0,0.00023288,2]
[322559409,1713058242027,-1000.0,0.00023288,2]
[322559410,1713058242038,-1000.0,0.00023288,2]
[322559411,1713058242049,-1000.0,0.00023288,2]
[322559412,1713058242058,-1000.0,0.00023288,2]
[322559413,1713058242067,-1000.0,0.00023288,2]
[322559414,1713058242077,-1000.0,0.00023288,2]
[322559415,1713058242086,-1000.0,0.00023288,2]
[322559416,1713058242095,-1000.0,0.00023288,2]
[322559417,1713058242105,-1000.0,0.00023288,2]
[322559418,1713058242114,-1000.0,0.00023288,2]
[322559419,1713058242124,-1000.0,0.00023288,2]
[322559420,1713058242138,-1000.0,0.00023288,2]
[322559421,1713058242146,-1000.0,0.00023288,2]
[322559422,1713058242156,-1000.0,0.00023288,2]
[322559423,1713058242165,-1000.0,0.00023288,2]
[322559424,1713058242174,-1000.0,0.00023288,2]
[322559425,1713058242183,-1000.0,0.00023288,2]
[322559426,1713058242193,-1000.0,0.00023288,2]
[322559427,1713058242202,-1000.0,0.00023288,2]
[322559428,1713058242212,-1000.0,0.00023288,2]
[322559429,1713058242221,-1000.0,0.00023288,2]
[322559430,1713058242230,-1000.0,0.00023288,2]
[322559431,1713058242238,-1000.0,0.00023288,2]
[322559432,1713058242248,-1000.0,0.00023288,2]
[322559433,1713058242257,-1000.0,0.00023288,2]
[322559434,1713058242266,-1000.0,0.00023288,2]
[322559435,1713058242275,-1000.0,0.00023288,2]
[322559436,1713058242284,-1000.0,0.00023288,2]
[322559437,1713058242293,-1000.0,0.00023288,2]
[322559439,1713058242303,-1000.0,0.00023288,2]
[322559441,1713058242312,-1000.0,0.00023288,2]
[322559443,1713058242321,-1000.0,0.00023288,2]
[322559445,1713058242330,-21.32263531,0.00023288,2]
[322559500,1713058242772,-343.66500353,0.00022,2]
[322559502,1713058242781,-343.66500353,0.00022,2]
[322559504,1713058242791,-343.66500353,0.00022,2]
[322559505,1713058242801,-343.66500353,0.00022,2]
[322559506,1713058242811,-978.67736469,0.00023288,2]
[322559507,1713058242820,-1000.0,0.00023288,2]
[322559508,1713058242830,-1000.0,0.00023288,2]
[322559509,1713058242839,-1000.0,0.00023288,2]
[322559510,1713058242848,-1000.0,0.00023288,2]
[322559511,1713058242857,-1000.0,0.00023288,2]
[322559512,1713058242867,-786.0,0.00023288,2]
[322559513,1713058242876,-396.734056,0.00023288,2]
[322559514,1713058242885,-279.02,0.00023417,2]
[322559515,1713058242895,-736.50865804,0.000235,2]
[322559516,1713058242907,-4004.72222957,0.000235,2]
[322559517,1713058242919,-258.76911239,0.000235,2]
[322559518,1713058242929,-635.79557769,0.000236,2]
[322559519,1713058242940,-364.20442231,0.000236,2]
[322559520,1713058242949,-341.79538769,0.0002376,2]
[322559521,1713058242962,-403.51015247,0.0002376,2]
[322559522,1713058242973,-402.6831385,0.0002376,2]
[322559523,1713058242984,-396.90429694,0.0002376,2]
[322559534,1713058243816,30000.0,0.0003,30]
[322559535,1713058244495,-252.67500536,0.00022,2]
[322559536,1713058244508,-90.98999817,0.00022,2]
[322559537,1713058244518,-343.66500353,0.00022,2]
[322559538,1713058244528,-343.66500353,0.00022,2]
[322559539,1713058244538,-343.66500353,0.00022,2]
[322559540,1713058244548,-343.66500353,0.00022,2]
[322559541,1713058244558,-343.66500353,0.00022,2]
[322559542,1713058244568,-343.66500353,0.00022,2]
[322559543,1713058244578,-343.66500353,0.00022,2]
[322559544,1713058244588,-343.66500353,0.00022,2]
[322559545,1713058244599,-343.66500353,0.00022,2]
[322559546,1713058244609,-343.66500353,0.00022,2]
[322559547,1713058244619,-343.66500353,0.00022,2]
[322559548,1713058244629,-343.66500353,0.00022,2]
[322559549,1713058244643,-343.66500353,0.00022,2]
[322559550,1713058244653,-343.66500353,0.00022,2]
[322559551,1713058244663,-343.66500353,0.00022,2]
[322559552,1713058244673,-343.66500353,0.00022,2]
[322559553,1713058244683,-343.66500353,0.00022,2]
[322559554,1713058244693,-25.7237644,0.0002376,2]
[322559555,1713058244705,-167.0,0.00023932,2]
[322559556,1713058244714,-943.19169784,0.00024,2]
[322559557,1713058244723,-1500.0,0.0002408,2]
[322559558,1713058244733,-1031.76492772,0.000241,2]
[322559559,1713058244743,-396.734056,0.0002411,2]
[322559560,1713058244752,-279.02,0.0002419,2]
[322559561,1713058244762,-393.13946506,0.0002421,2]
[322559562,1713058244771,-693.49201456,0.0002425,2]
[322559563,1713058244782,-200.0,0.00024254,2]
[322559564,1713058244791,-500.0,0.00024254,2]
[322559565,1713058244801,-1350.0,0.000243,2]
[322559566,1713058244810,-452.74,0.00024639,2]
[322559567,1713058244820,-190.79,0.00024658,2]
[322559568,1713058244830,-8407.35,0.00024658,4]
[322559569,1713058244840,-200.0,0.00024701,2]
[322559570,1713058244849,-1000.0,0.0002475,2]
[322559571,1713058244859,-39679.42422835,0.00024857,2]
[322559572,1713058244870,-396.734056,0.00024932,2]
[322559573,1713058244880,-279.02,0.00024964,2]
[322559574,1713058244893,-2604.88975131,0.00025,2]
[322559575,1713058244903,-621.08450925,0.00025,2]
[322559576,1713058244913,-155.0,0.00025,2]
[322559577,1713058244923,-155.0,0.00025,2]
[322559578,1713058244932,-562.96069789,0.00025,2]
[322559579,1713058244942,-155.0,0.00025,2]
[322559580,1713058244952,-196450.25013279,0.00025,2]
[322559607,1713058246445,-274.733615,0.00022,2]
[322559608,1713058246489,-68.93138853,0.00022,2]
[322559609,1713058246499,-343.66500353,0.00022,2]
[322559610,1713058246509,-238585.36223869,0.00025,2]
[322559611,1713058246518,-2845.93692396,0.00025,2]
[322559612,1713058246527,-6260.78500196,0.00025,2]
[322559613,1713058246537,-26832.1463976,0.00025,7]
[322559614,1713058246547,-600.0,0.00025,3]
[322559615,1713058246556,-1000.0,0.00025,2]
[322559616,1713058246566,-16152.95573308,0.000251,2]
[322559617,1713058246576,-3165.77602581,0.000251,2]
[322559618,1713058246586,-356.91,0.00025242,2]
[322559619,1713058246596,-200.0,0.00025391,2]
[322559620,1713058246606,-1000.0,0.00025394,2]
[322559621,1713058246615,-1260.42,0.000255,2]
[322559622,1713058246625,-1561.21,0.000257,2]
[322559623,1713058246635,-1000.0,0.000257,2]
[322559624,1713058246646,-279.02,0.00025737,2]
[322559625,1713058246656,-396.734056,0.00025753,2]
[322559626,1713058246664,-5680.0,0.000259,5]
[322559627,1713058246675,-4231.65047882,0.00026,2]
[322559628,1713058246684,-152.0,0.00026016,3]
[322559629,1713058246695,-62048.145991,0.000262,2]
[322559630,1713058246705,-152.0,0.00026258,4]
[322559631,1713058246716,-6588.06088604,0.000264,2]
[322559632,1713058247947,-949.21962,0.000207,2]
[322559637,1713058271395,19734.43683586,0.0003,30]
[322559651,1713059350326,-302.61774017,0.00035,120]
[322559652,1713059350358,-150.0,0.00035487,120]
[322559653,1713059350385,-150.0,0.00035532,120]
[322559654,1713059350414,-150.0,0.00035538,120]
[322559655,1713059350442,-150.0,0.00035694,120]
[322559679,1713059431823,-155.0,0.00020648,2]
[322559680,1713059431834,-616.69299396,0.00020649,2]
[322559681,1713059431843,-150.0,0.00020653,2]
[322559682,1713059431853,-150.0,0.00020658,2]
[322559683,1713059431862,-234.67834505,0.00020696,2]
[322559684,1713059431872,-216.55451694,0.00020698,2]
[322559685,1713059431882,-195.77296114,0.00020698,2]
[322559686,1713059431911,-319.13722269,0.00020698,2]
[322559687,1713059432095,-379.96068871,0.00020698,2]
[322559688,1713059432117,-319.4,0.00020698,2]
[322559689,1713059432129,-1115.74896353,0.00020698,2]
[322559690,1713059432144,-544.85215758,0.00020698,2]
[322559710,1713059437733,-580.4,0.00020698,2]
[322559711,1713059438123,-2105.71700104,0.00020698,2]
[322559712,1713059438135,-497.38943571,0.00020698,2]
[322559713,1713059438162,-899.86434415,0.00020698,2]
[322559714,1713059438172,-2365.52991781,0.00020698,2]
[322559715,1713059438181,-862.00467372,0.00020698,2]
[322559716,1713059438191,-298.48750743,0.00020698,2]
[322559717,1713059438200,-3796.02241214,0.00020698,2]
[322559719,1713059438210,-155.45914376,0.00020698,2]
[322559721,1713059438220,-155.34441123,0.00020698,2]
[322559724,1713059438230,-6613.63024724,0.00020699,2]
[322559726,1713059438239,-3891.35948,0.000207,2]
[322559728,1713059438249,-1000.0,0.000207,2]
[322559730,1713059438258,-96401.7617,0.000207,2]
[322559731,1713059438268,-414.6662,0.000207,2]
[322559734,1713059438277,-1000.0,0.00020832,2]
[322559735,1713059438287,-500.0,0.00020832,2]
[322559738,1713059438298,-200.0,0.00020832,2]
[322559740,1713059438307,-1118.6682,0.000209,2]
[322559742,1713059438317,-1000.0,0.000209,2]
[322559744,1713059438327,-499.99,0.000209,2]
[322559746,1713059438336,-715.48314253,0.00021,2]
[322559748,1713059438346,-301439.18751601,0.00021,2]
[322559974,1713059440390,-1083.53668531,0.00021,2]
[322560031,1713059440917,-3339.87943909,0.00021,2]
[322560034,1713059440938,-3598.911432,0.00021,2]
[322560037,1713059440958,-253.26992793,0.00021,2]
[322560038,1713059440970,-693.01630788,0.00021,2]
[322560087,1713059442821,-4039.54,0.00021,2]
[322560114,1713059443569,-7168.72756046,0.00021,2]
[322560115,1713059443593,-976.920342,0.00021,2]
[322560116,1713059443605,-383.48999995,0.00021,2]
[322560117,1713059443617,-863.04239845,0.00021,2]
[322560118,1713059443628,-1487.23232148,0.00021,2]
[322560119,1713059443663,-547.46957672,0.00021,2]
[322560120,1713059443683,-4244.13679226,0.00021,2]
[322560121,1713059443694,-3197.194,0.00021,2]
[322560122,1713059445816,-21648.81519892,0.00021,2]
[322560123,1713059445951,-1023.38249578,0.00021,2]
[322560124,1713059446123,-27277.20442389,0.00021,2]
[322560278,1713059468297,1781.51891543,0.00018898,5]
[322560279,1713059606927,421.57,0.00019441,2]
[322560280,1713059626798,-150.0,0.00036235,120]
[322560281,1713059626827,-150.0,0.00036499,120]
[322560282,1713059634768,300.0,0.00025,18]
[322560283,1713059659448,1009.13408164,0.0002,2]
[322560285,1713059724274,300.0,0.0003,30]
[322560286,1713059766208,402.0,0.0003,30]
[322560287,1713059852723,172.15,0.00016172,2]
[322560289,1713059896247,229.33836,0.00019955,2]
[322560290,1713060007515,404.40084849,0.00019954,2]
[322560291,1713060073643,400.49,0.0001823,2]
[322560292,1713060100232,1572.59197891,0.00019955,2]
[322560293,1713060258030,250.0,0.00019988,2]
[322560307,1713060559434,920.0,0.00019979,2]
[322560308,1713060562296,-150.0,0.00020052,2]
[322560309,1713060562323,-269.611831,0.00020052,2]
[322560310,1713060562351,-5575.0113399,0.00020053,2]
[322560311,1713060562400,-5994.6231709,0.00020053,2]
[322560312,1713060562468,-5994.6231709,0.00020053,2]
[322560313,1713060562544,-1412.42645788,0.00020053,2]
[322560316,1713060569804,380.46,0.00018189,2]
[322560317,1713060583110,22946.11269131,0.00019953,2]
[322560318,1713060617277,1196.0,0.0003,30]
[322560328,1713060632338,-438.38434083,0.00020053,2]
[322560329,1713060632348,-165.82090615,0.00020055,2]
[322560330,1713060632358,-200.0,0.00020098,2]
[322560331,1713060632367,-36.31807231,0.0002013,2]
[322560335,1713060632395,-446.01192769,0.0002013,2]
[322560336,1713060632405,-288.62328556,0.00020141,2]
[322560337,1713060632526,-206.23671444,0.00020141,2]
[322560338,1713060632536,-380.46,0.00020453,2]
[322560339,1713060632546,-1.87758694,0.00020478,2]
[322560403,1713060637923,-163.94331919,0.00020478,2]
[322560404,1713060637933,-333.0587,0.000208,2]
[322560405,1713060637945,-1402.72146639,0.000208,2]
[322560406,1713060637954,-697.9783,0.000208,2]
[322560407,1713060637963,-1402.72146639,0.00020811,2]
[322560408,1713060637973,-299.99,0.00020811,7]
[322560409,1713060637982,-499.99,0.00020811,2]
[322560410,1713060637991,-155.55,0.00020811,2]
[322560411,1713060638001,-1402.72146639,0.00020822,2]
[322560412,1713060638009,-1000.0,0.00020832,2]
[322560413,1713060638019,-200.0,0.00020832,2]
[322560414,1713060638028,-1402.72146639,0.00020833,2]
[322560415,1713060638037,-335.98564752,0.00020833,2]
[322560416,1713060638046,-1402.72146639,0.00020844,2]
[322560417,1713060638055,-335.98564752,0.00020844,2]
[322560418,1713060638065,-1402.72146639,0.00020856,2]
[322560419,1713060638075,-335.98564752,0.00020856,2]
[322560420,1713060638084,-1402.72146639,0.00020867,2]
[322560421,1713060638094,-335.98564752,0.00020867,2]
[322560422,1713060638103,-1402.72146639,0.00020878,2]
[322560423,1713060638113,-335.98564752,0.00020878,2]
[322560424,1713060638122,-1402.72146639,0.00020889,2]
[322560425,1713060638132,-335.98564752,0.00020889,2]
[322560426,1713060638141,-308.55765395,0.00020898,4]
[322560427,1713060638150,-1000.0,0.000209,2]
[322560428,1713060638159,-33700.5578,0.000209,2]
[322560429,1713060638169,-500.0,0.000209,2]
[322560430,1713060638179,-245000.0,0.000209,2]
[322560431,1713060638189,-5648.79758545,0.000209,2]
[322560432,1713060638198,-165.82090613,0.000209,2]
[322560433,1713060638207,-7500.0,0.000209,2]
[322560434,1713060638217,-174.87310721,0.000209,2]
[322560435,1713060638227,-22404.16248961,0.000209,2]
[322560436,1713060638236,-1402.72146639,0.000209,2]
[322560437,1713060638246,-335.98564752,0.000209,2]
[322560438,1713060638255,-764.5487333,0.000209,2]
[322560439,1713060638264,-1631.08206989,0.000209,2]
[322560440,1713060638274,-194.43150302,0.000209,2]
[322560441,1713060638283,-1252.24916501,0.000209,2]
[322560442,1713060638293,-232.24373344,0.000209,2]
[322560443,1713060638302,-1000.0,0.0002095,2]
[322560444,1713060638312,-800.0,0.00020959,2]
[322560445,1713060638322,-260.14477758,0.00020997,2]
[322560446,1713060638331,-554.66666419,0.00020998,2]
[322560447,1713060638341,-155.47770022,0.00020998,2]
[322560448,1713060638351,-155.92943628,0.00020998,2]
[322560449,1713060638360,-378.54396949,0.00020998,2]
[322560450,1713060638370,-409.39477224,0.00020998,2]
[322560451,1713060638379,-162.46555784,0.00020998,2]
[322560452,1713060638388,-2957.19664415,0.00020998,2]
[322560453,1713060638398,-448.21528889,0.00020998,2]
[322560454,1713060638407,-155.3575958,0.00020998,2]
[322560455,1713060638417,-568.30850268,0.00020999,2]
[322560456,1713060638427,-500.0,0.00020999,2]
[322560457,1713060638439,-442.4711004,0.00020999,2]
[322560458,1713060638449,-245.13308242,0.00020999,2]
[322560459,1713060638458,-1078041.25011581,0.00021,2]
[322560460,1713060638468,-715.48314253,0.00021,2]
[322560461,1713060638478,-9740398.78729814,0.00021,2]
[322560463,1713060639752,-13141276.2216504,0.00021,2]
[322560466,1713060639765,-3229.87777611,0.00021,2]
[322560468,1713060639808,-127940.716141,0.00021,2]
[322560469,1713060639821,-786.78721566,0.00021,2]
[322560470,1713060639833,-285.45700075,0.00021,2]
[322560471,1713060639893,-1026407.09171837,0.00021,2]
[322560472,1713060639936,-10000.0,0.00021,2]
[322560473,1713060640055,-269.611831,0.00020477,2]
[322560474,1713060640064,-8760.22073823,0.00021,2]
[322560475,1713060640166,-3099.957624,0.00021,2]
[322560476,1713060640199,-1500.90836368,0.00021,2]
[322560477,1713060640221,-4167.582,0.00021,2]
[322560478,1713060640233,-484.327879,0.00021,2]
[322560479,1713060640262,-676.12645895,0.00021,2]
[322560480,1713060640274,-779.95397382,0.00021,2]
[322560481,1713060640285,-388.50512057,0.00021,2]
[322560482,1713060640298,-1061.41300226,0.00021,2]
[322560502,1713060643008,-433.10829665,0.00021,2]
[322560503,1713060643019,-1398.32267336,0.00021,2]
[322560504,1713060643032,-382.7350001,0.00021,2]
[322560505,1713060643045,-1504.49999999,0.00021,2]
[322560506,1713060643057,-3199.69650001,0.00021,2]
[322560517,1713060646114,-1438.04998,0.00021,2]
[322560518,1713060646125,-5558.76402544,0.00021,2]
[322560519,1713060657021,265.89638029,0.00018899,2]
[322560520,1713060659490,156.19509503,0.00018899,2]
[322560521,1713060663731,152.8,0.0002099,15]
[322560522,1713060663825,152.73,0.0002099,15]
[322560523,1713060663870,218.0,0.0002099,15]
[322560524,1713060663957,158.43,0.0002099,15]
[322560525,1713060664119,218.0,0.0002098,15]
[322560526,1713060664256,150.5,0.0002099,15]
[322560527,1713060664415,218.0,0.0002097,15]
[322560528,1713060664517,153.45,0.0002098,15]
[322560530,1713060700109,3309.0,0.0003,30]
[322560531,1713060784436,279.0,0.0002099,15]
[322560532,1713060784794,279.0,0.0002098,15]
[322560533,1713060785192,279.0,0.0002097,15]
[322560534,1713060785666,279.0,0.0002099,15]
[322560535,1713060786185,279.0,0.0002098,15]
[322560536,1713060786662,153.0,0.0002099,15]
[322560537,1713060786694,279.0,0.0002097,15]
[322560538,1713060787355,279.0,0.0002099,15]
[322560539,1713060787600,279.0,0.0002098,15]
[322560540,1713060787636,153.0,0.0002098,15]
[322560541,1713060788068,279.0,0.0002099,15]
[322560542,1713060788117,153.0,0.0002097,15]
[322560543,1713060788560,283.56,0.0002098,15]
[322560544,1713060788734,153.0,0.0002099,15]
[322560545,1713060789230,153.0,0.0002098,15]
[322560546,1713060789786,153.0,0.0002097,15]
[322560547,1713060790436,153.0,0.0002099,15]
[322560548,1713060790932,153.0,0.0002098,15]
[322560549,1713060791456,153.0,0.0002099,15]
[322560550,1713060791993,158.91,0.0002098,15]
[322560551,1713060806344,200.0,0.00019964,2]
[322560552,1713060809605,4353.89,0.00019964,2]
[322560553,1713060817141,161.17,0.00019939,2]
[322560554,1713060817193,161.17,0.00019973,2]
[322560555,1713060833045,500.0,0.00019874,2]
[322560556,1713060839234,1852.42,0.00019874,2]
[322560557,1713060852859,465.98,0.00019874,2]
[322560558,1713060853521,10000.0,0.00019874,2]
[322560559,1713060868830,184.53,0.00015888,2]
[322560560,1713060880853,8631.97,0.0001986,2]
[322560562,1713060928017,541.64,0.0001964,2]
[322560563,1713060970798,552.02,0.00019647,2]
[322560564,1713060972218,556.52,0.00019647,2]
[322560566,1713060997183,1643.74,0.00019647,2]
[322560567,1713061018788,173.23,0.00019647,2]
[322560568,1713061039616,1801.39,0.00019647,2]
[322560569,1713061041347,1393.86,0.00019804,2]
[322560570,1713061047532,264.0,0.00019673,2]
[322560571,1713061051119,300.0,0.0003,30]
[322560572,1713061053930,401.66,0.00017754,2]
[322560573,1713061061359,361.49418806,0.0002,2]
[322560574,1713061078993,20268.64,0.00019646,2]
[322560575,1713061093887,241.03,0.0001967,2]
[322560576,1713061111458,500.0,0.0001967,2]
[322560577,1713061135324,1858.44,0.0001967,2]
[322560578,1713061167099,1871.6,0.00019695,2]
[322560579,1713061191298,189.95,0.00019697,2]
[322560580,1713061196343,150.0,0.00019697,2]
[322560581,1713061230215,9233.44,0.0002027,10]
[322560582,1713061236324,2751.0,0.00019683,2]
[322560583,1713061252109,10317.32,0.00019683,2]
[322560584,1713061352634,-250.0,0.00020006,2]
[322560585,1713061352660,-161.17,0.00020006,2]
[322560586,1713061352687,-152.12,0.00020009,2]
[322560587,1713061352713,-401.66,0.00020018,2]
[322560588,1713061352742,-161.17,0.00020039,2]
[322560589,1713061352769,-152.12,0.00020096,2]
[322560590,1713061352794,-200.0,0.00020144,2]
[322560591,1713061352821,-152.12,0.00020183,2]
[322560592,1713061352846,-176.58,0.00020239,2]
[322560593,1713061352871,-150.0,0.00020269,2]
[322560594,1713061352896,-239.64,0.00020269,2]
[322560595,1713061352923,-499.99,0.0002027,2]
[322560596,1713061352948,-999.99,0.0002027,2]
[322560597,1713061352975,-7708.42,0.0002027,2]
[322560598,1713061353002,-152.12,0.0002027,2]
[322560599,1713061353028,-152.12,0.00020357,2]
[322560600,1713061353055,-200.0,0.00020429,2]
[322560601,1713061353082,-152.12,0.00020444,2]
[322560602,1713061353109,-152.12,0.00020531,2]
[322560603,1713061353135,-2878.40363181,0.00020565,2]
[322560604,1713061353162,-553.3,0.00020565,2]
[322560605,1713061353191,-152.12,0.00020617,2]
[322560606,1713061353219,-500.0,0.000207,2]
[322560607,1713061353246,-1640.83942695,0.000207,2]
[322560608,1713061353277,-351.31968078,0.000207,2]
[322560609,1713061353305,-152.12,0.00020704,2]
[322560610,1713061353333,-1640.83942686,0.00020722,2]
[322560611,1713061353359,-351.31968072,0.00020722,2]
[322560612,1713061353386,-1640.83942686,0.00020744,2]
[322560613,1713061353415,-351.31968072,0.00020744,2]
[322560614,1713061353441,-1640.83942686,0.00020767,2]
[322560615,1713061353467,-351.31968072,0.00020767,2]
[322560616,1713061353493,-318.46400583,0.00020788,2]
[322560617,1713061353522,-1640.83942686,0.00020789,2]
[322560618,1713061353549,-351.31968072,0.00020789,2]
[322560619,1713061353576,-152.04,0.0002079,2]
[322560620,1713061353603,-152.12,0.00020791,2]
[322560621,1713061353630,-155.70964327,0.00020798,2]
[322560622,1713061353660,-155.0,0.00020798,2]
[322560623,1713061353686,-155.80862333,0.00020798,2]
[322560624,1713061353711,-500.1205604,0.00020799,2]
[322560625,1713061353735,-940.7838,0.000208,2]
[322560626,1713061353762,-21059.75419731,0.000208,2]
[322560628,1713061622695,361.49,0.00018373,2]
[322560638,1713061679914,1247.4,0.00019938,2]
[322560640,1713061694455,1000.0,0.00019907,2]
[322560642,1713061703833,-6213.88641016,0.00020148,2]
[322560643,1713061703897,-5352.75795114,0.00020148,2]
[322560680,1713061832057,-250.0,0.00020149,2]
[322560681,1713061832067,-276.01,0.00020237,2]
[322560682,1713061832076,-152.12,0.00020439,2]
[322560683,1713061832085,-198.367028,0.00020548,2]
[322560684,1713061832094,-452.78699973,0.00020566,2]
[322560685,1713061832180,-1424.75135305,0.00020566,2]
[322560686,1713061832268,-648.56657786,0.00020566,2]
[322560687,1713061832279,-352.29870117,0.00020566,2]
[322560688,1713061832288,-182.38495245,0.0002059,2]
[322560689,1713061832351,-136.07905338,0.0002059,2]
[322560690,1713061832361,-264.81983249,0.00020637,2]
[322560691,1713061832405,-96.67016751,0.00020637,2]
[322560692,1713061832414,-2259.4785,0.00020699,2]
[322560693,1713061832424,-150.0,0.00020699,2]
[322560694,1713061832433,-1000.0,0.000207,2]
[322560695,1713061832443,-316.18771272,0.000207,2]
[322560696,1713061832453,-1640.83942695,0.000207,2]
[322560697,1713061832462,-316.18771264,0.00020722,2]
[322560698,1713061832471,-1640.83942686,0.00020722,2]
[322560699,1713061832481,-316.18771264,0.00020744,2]
[322560700,1713061832490,-1640.83942686,0.00020744,2]
[322560701,1713061832499,-316.18771264,0.00020767,2]
[322560702,1713061832509,-1640.83942686,0.00020767,2]
[322560703,1713061832518,-316.18771264,0.00020789,2]
[322560704,1713061832528,-1640.83942686,0.00020789,2]
[322560705,1713061832537,-1005.56672438,0.00020799,2]
[322560706,1713061832546,-205.60644287,0.00020799,2]
[322560707,1713061832556,-573.32492662,0.000208,2]
[322560708,1713061832605,-6158.1790749,0.000208,2]
[322560724,1713061838167,-421.9026543,0.000208,2]
[322560725,1713061838179,-820.06209705,0.000208,2]